bitfinex-derivatives/quotes_SOLF0:USTF0_20250705
["timestamp","ask_amount","ask_price","bid_price","bid_amount"]
[1751718122954,6.7596,147.89,147.86,49.5533632]
[1751718123154,6.7593,147.9,147.87,6.7604]
[1751718125757,6.7588,147.91,147.88,3.6533632]
[1751718126452,6.7588,147.91,147.88,10.4131632]
[1751718126747,6.7588,147.91,147.88,6.7598]
[1751718127056,6.7588,147.91,147.88,10.4131632]
[1751718128159,6.7588,147.91,147.89,6.7595]
[1751718128357,6.7583,147.92,147.89,6.7595]
[1751718128857,45.9,147.95,147.89,6.7595]
[1751718129059,12.91031222,147.94,147.89,6.7595]
[1751718129256,5.75792586,147.93,147.89,6.7595]
[1751718129457,5.75792586,147.92,147.89,6.7595]
[1751718129657,6.7587,147.91,147.89,6.7595]
[1751718131766,6.7587,147.91,147.9,2.33857332]
[1751718135464,6.7584,147.92,147.9,2.33857332]
[1751718135671,45.9,147.95,147.91,2.33857332]
[1751718135871,12.97263811,147.94,147.92,2.33857332]
[1751718136070,5.77948516,147.93,147.92,2.33857332]
[1751718136570,12.53768516,147.93,147.92,2.33857332]
[1751718139370,6.7575,147.94,147.92,2.33857332]
[1751718139669,6.7575,147.94,147.93,2.33857332]
[1751718143879,6.7575,147.94,147.92,6.7581]
[1751718144079,6.7575,147.94,147.93,2.33857332]
[1751718148982,6.7575,147.94,147.91,6.7584]
[1751718149182,6.7575,147.94,147.93,2.33857332]
[1751718152190,12.53751482,147.94,147.93,2.33857332]
[1751718157194,6.7575,147.94,147.93,2.33857332]
[1751718159595,6.7582,147.92,147.91,2.33857332]
[1751718159788,4.75067332,147.96,147.91,2.33857332]
[1751718159989,13.03411936,147.95,147.91,2.33857332]
[1751718160294,6.758,147.93,147.91,2.33857332]
[1751718160989,6.758,147.93,147.92,2.33857332]
[1751718161596,6.758,147.93,147.91,2.33857332]
[1751718162192,4.75067332,147.96,147.9,52.6589]
[1751718162396,8.30408975,147.95,147.91,2.33857332]
[1751718162596,10.49988396,147.94,147.91,2.33857332]
[1751718162897,6.7581,147.93,147.91,2.33857332]
[1751718170099,6.7581,147.93,147.92,2.33857332]
[1751718170300,6.7582,147.92,147.9,52.6589]
[1751718170599,6.7582,147.92,147.91,2.33857332]
[1751718173405,6.758,147.93,147.91,2.33857332]
[1751718173604,6.758,147.93,147.92,2.33857332]
[1751718173803,12.56693619,147.93,147.92,2.33857332]
[1751718175101,6.7583,147.92,147.9,52.6589]
[1751718175311,6.7583,147.92,147.91,2.33857332]
[1751718179209,12.57137954,147.92,147.91,2.33857332]
[1751718180812,2.4121,147.96,147.91,9.09727332]
[1751718181012,13.06999503,147.95,147.92,2.33857332]
[1751718181308,13.07025812,147.94,147.91,2.33857332]
[1751718181612,10.54178715,147.93,147.91,2.33857332]
[1751718181909,5.81427743,147.92,147.91,2.33857332]
[1751718182510,12.57247743,147.92,147.91,2.33857332]
[1751718189817,12.57247743,147.92,147.91,2.33804737]
[1751718193320,15.39710329,147.92,147.87,2.33804737]
[1751718193522,15.39869033,147.91,147.87,2.33952192]
[1751718193722,10.53200416,147.9,147.87,2.33952192]
[1751718193920,12.57427743,147.89,147.87,2.33952192]
[1751718194120,6.76,147.89,147.87,2.33952192]
[1751718195921,6.76,147.89,147.88,2.33952192]
[1751718196417,6.7595,147.9,147.88,2.33952192]
[1751718196822,6.7595,147.9,147.89,2.33952192]
[1751718197124,12.51641439,147.9,147.89,2.33952192]
[1751718203322,6.7595,147.9,147.89,2.33952192]
[1751718209630,6.7603,147.89,147.88,2.33952192]
[1751718212530,6.7608,147.88,147.86,239.64]
[1751718212829,2.33952192,147.89,147.86,45.82]
[1751718213029,6.7611,147.87,147.86,45.82]
[1751718216334,2.33952192,147.88,147.84,2.33952192]
[1751718217537,6.7623,147.85,147.84,2.33952192]
[1751718217738,2.33952192,147.88,147.83,2.33952192]
[1751718218034,5.7219237,147.87,147.83,2.33952192]
[1751718218331,2.33952192,147.88,147.83,2.33952192]
[1751718218532,5.72020357,147.87,147.83,2.33952192]
[1751718218835,6.7624,147.85,147.83,2.33952192]
[1751718220636,6.7624,147.84,147.83,2.33952192]
[1751718222436,6.7624,147.84,147.82,45.82]
[1751718222635,6.7624,147.84,147.83,2.33952192]
[1751718224329,6.7629,147.83,147.82,239.66]
[1751718224532,6.7629,147.83,147.82,241.99952192]
[1751718224938,6.7629,147.83,147.82,2.33952192]
[1751718225238,6.7629,147.83,147.82,196.17952192]
[1751718226331,6.7629,147.83,147.82,2.33952192]
[1751718227839,2.33952192,147.84,147.8,45.82]
[1751718228043,2.33952192,147.87,147.82,2.33952192]
[1751718228235,12.84579624,147.86,147.83,2.33952192]
[1751718228435,2.33952192,147.87,147.83,2.33952192]
[1751718228635,5.70776282,147.86,147.83,2.33952192]
[1751718228929,6.7628,147.84,147.83,2.33952192]
[1751718229136,2.33952192,147.87,147.82,193.86]
[1751718229337,6.7629,147.83,147.82,193.86]
[1751718230143,2.33952192,147.84,147.8,242.03952192]
[1751718230638,4.6145,147.86,147.8,242.03952192]
[1751718230839,2.33952192,147.84,147.8,242.03952192]
[1751718231540,6.7638,147.81,147.8,242.03952192]
[1751718231840,6.7638,147.81,147.8,239.7]
[1751718232432,6.7638,147.81,147.8,45.82]
[1751718232846,6.7638,147.81,147.8,48.15952192]
[1751718233044,6.7638,147.81,147.8,45.82]
[1751718234443,6.7638,147.81,147.79,196.25952192]
[1751718235442,6.7638,147.81,147.79,196.23952192]
[1751718235643,6.7636,147.82,147.8,2.33952192]
[1751718235940,6.7636,147.82,147.81,2.33952192]
[1751718236740,6.7631,147.83,147.81,2.33952192]
[1751718237047,6.95402192,147.86,147.81,2.33952192]
[1751718237247,6.7634,147.82,147.81,2.33952192]
[1751718237748,2.33952192,147.84,147.79,196.23952192]
[1751718238341,6.7641,147.81,147.79,196.23952192]
[1751718240147,6.7641,147.81,147.8,2.33952192]
[1751718240342,2.33952192,147.83,147.77,6.7656]
[1751718240647,2.33952192,147.83,147.79,2.33952192]
[1751718241642,6.7644,147.8,147.79,2.33952192]
[1751718243740,4.84583575,147.85,147.79,2.33952192]
[1751718243944,2.33952192,147.85,147.81,2.33952192]
[1751718244150,5.68415849,147.84,147.81,2.33952192]
[1751718244454,6.7636,147.82,147.81,2.33952192]
[1751718249949,6.763,147.83,147.81,2.33952192]
[1751718250146,6.763,147.83,147.82,2.33952192]
[1751718250346,6.7636,147.82,147.81,2.33952192]
[1751718252352,6.763,147.83,147.81,2.33952192]
[1751718252649,6.763,147.83,147.82,2.33952192]
[1751718254056,6.7634,147.82,147.81,2.33952192]
[1751718254954,6.7634,147.82,147.8,2.33952192]
[1751718255657,6.7634,147.82,147.79,6.7645]
[1751718255857,6.7634,147.82,147.8,2.33952192]
[1751718257157,6.7634,147.82,147.8,9.10382192]
[1751718258955,6.7634,147.82,147.8,2.33952192]
[1751718259262,2.33952192,147.83,147.79,2.33952192]
[1751718259860,6.7641,147.81,147.79,2.33952192]
[1751718261156,2.34226049,147.83,147.77,196.28226049]
[1751718261356,15.18971464,147.82,147.77,196.28226049]
[1751718261554,2.34226049,147.82,147.77,2.34226049]
[1751718261961,2.34226049,147.81,147.76,48.18226049]
[1751718262155,2.34226049,147.79,147.76,45.84]
[1751718262355,2.34325646,147.8,147.76,45.84]
[1751718262660,6.7654,147.78,147.76,45.84]
[1751718263566,6.7654,147.78,147.76,48.18325646]
[1751718265162,6.7656,147.77,147.76,48.18325646]
[1751718265766,6.7656,147.77,147.76,45.84]
[1751718266764,6.7654,147.78,147.76,45.84]
[1751718267362,6.7654,147.78,147.76,48.18325646]
[1751718268366,6.7654,147.78,147.76,45.84]
[1751718268555,6.7654,147.78,147.76,48.18325646]
[1751718269668,4.73875646,147.81,147.77,2.34325646]
[1751718269867,5.71120328,147.8,147.77,2.34325646]
[1751718270058,4.73875646,147.81,147.77,2.34325646]
[1751718270059,6.765,147.79,147.77,2.34325646]
[1751718270662,6.7652,147.78,147.77,2.34325646]
[1751718274764,6.7652,147.78,147.76,45.84]
[1751718274965,6.7652,147.78,147.76,48.18325646]
[1751718275168,6.7656,147.77,147.76,45.84]
[1751718276272,6.7656,147.77,147.75,2.34325646]
[1751718276774,2.34325646,147.8,147.75,9.10975646]
[1751718276977,2.34325646,147.8,147.76,2.34325646]
[1751718277662,6.7656,147.78,147.77,2.34325646]
[1751718277875,4.73875646,147.81,147.77,2.34325646]
[1751718278072,5.68689264,147.8,147.77,2.34325646]
[1751718278275,6.7651,147.79,147.77,2.34325646]
[1751718278474,4.73875646,147.81,147.77,2.34325646]
[1751718278677,5.68686518,147.8,147.77,2.34325646]
[1751718278872,4.73875646,147.81,147.77,2.34325646]
[1751718279067,5.68664593,147.8,147.77,2.34325646]
[1751718279372,4.73875646,147.81,147.77,2.34325646]
[1751718279573,5.68665371,147.8,147.77,2.34325646]
[1751718279772,4.73875646,147.81,147.77,2.34325646]
[1751718279975,5.68665371,147.8,147.77,2.34325646]
[1751718280176,6.765,147.79,147.77,2.34325646]
[1751718282077,6.7652,147.78,147.77,2.34325646]
[1751718284880,6.7649,147.79,147.77,2.34325646]
[1751718285576,6.7649,147.79,147.76,6.7661]
[1751718285780,6.7649,147.79,147.77,2.34325646]
[1751718290380,6.7652,147.78,147.77,2.34325646]
[1751718291381,6.7652,147.78,147.76,9.10935646]
[1751718295176,6.7652,147.78,147.77,2.34325646]
[1751718296187,6.7652,147.78,147.76,6.7661]
[1751718296386,6.7652,147.78,147.77,2.34325646]
[1751718298086,6.7652,147.78,147.76,9.10935646]
[1751718300988,6.7652,147.78,147.76,2.34325646]
[1751718301193,6.7652,147.78,147.77,2.34325646]
[1751718301692,6.7657,147.77,147.75,9.10955646]
[1751718302088,2.34325646,147.8,147.75,9.10955646]
[1751718302291,6.7654,147.78,147.75,9.10955646]
[1751718303594,6.7654,147.78,147.76,2.34325646]
[1751718304200,5.71056575,147.77,147.76,2.34325646]
[1751718306500,6.7654,147.78,147.76,2.34325646]
[1751718307499,6.7649,147.79,147.77,2.34325646]
[1751718307690,5.71164256,147.78,147.77,2.34325646]
[1751718308600,12.47684256,147.78,147.77,2.34325646]
[1751718309597,8.32623116,147.84,147.77,2.34325646]
[1751718309598,10.83722983,147.85,147.77,48.20325646]
[1751718309800,12.81804096,147.84,147.81,2.34325646]
[1751718310005,12.81804096,147.83,147.82,6.7634]
[1751718310303,8.58792983,147.89,147.82,2.34325646]
[1751718310502,6.7627,147.84,147.83,2.34325646]
[1751718310899,2.34325646,147.87,147.83,2.34325646]
[1751718311097,12.81585917,147.86,147.84,2.34325646]
[1751718311297,2.34325646,147.88,147.84,2.34325646]
[1751718311498,12.80637853,147.87,147.84,2.34325646]
[1751718311698,2.34325646,147.88,147.84,2.34325646]
[1751718311901,6.7618,147.86,147.84,2.34325646]
[1751718312701,6.7618,147.86,147.85,2.34325646]
[1751718312902,2.34325646,147.89,147.85,2.34325646]
[1751718313103,12.78486834,147.88,147.85,2.34325646]
[1751718313298,5.70584441,147.87,147.85,2.34325646]
[1751718313497,2.34325646,147.89,147.85,2.34325646]
[1751718313702,12.77806595,147.88,147.85,2.34325646]
[1751718313901,5.70317506,147.87,147.85,2.34325646]
[1751718314207,6.7615,147.86,147.85,2.34325646]
[1751718314409,15.11326549,147.86,147.82,45.86]
[1751718314602,8.04289927,147.85,147.82,45.86]
[1751718314802,2.34325646,147.85,147.81,2.34325646]
[1751718315000,6.7633,147.83,147.81,2.34325646]
[1751718315810,6.7633,147.83,147.8,6.7639]
[1751718317310,6.7633,147.83,147.79,3.65853277]
[1751718317311,6.7635,147.82,147.79,10.42313277]
[1751718317914,6.7639,147.81,147.79,3.65853277]
[1751718318208,6.7639,147.81,147.78,56.28353277]
[1751718318509,2.2191,147.85,147.78,56.28353277]
[1751718318510,6.7647,147.79,147.78,45.86]
[1751718320014,6.7647,147.79,147.76,3.65853277]
[1751718320612,6.764,147.81,147.75,9.0058]
[1751718320915,3.65853277,147.83,147.75,12.66433277]
[1751718321110,12.86241451,147.82,147.75,12.66433277]
[1751718321310,12.86241451,147.81,147.75,12.66433277]
[1751718321512,5.71675851,147.8,147.75,12.66433277]
[1751718321714,3.65853277,147.83,147.75,12.66433277]
[1751718322017,12.82454172,147.82,147.75,12.66433277]
[1751718322218,6.7651,147.79,147.75,12.66433277]
[1751718322417,6.7651,147.79,147.76,6.7661]
[1751718324214,6.7652,147.78,147.75,12.66423277]
[1751718325418,6.7652,147.78,147.76,6.7661]
[1751718325617,6.7649,147.79,147.76,6.7661]
[1751718329022,2.33,147.84,147.77,3.65853277]
[1751718329226,5.68801913,147.83,147.77,3.65853277]
[1751718329426,2.33,147.84,147.77,3.65853277]
[1751718329627,6.7639,147.81,147.78,6.7649]
[1751718332826,6.7643,147.8,147.77,10.42393277]
[1751718335624,5.98853277,147.84,147.77,10.42393277]
[1751718335625,6.764,147.81,147.77,3.65853277]
[1751718336329,6.764,147.81,147.78,6.7649]
[1751718339834,6.764,147.81,147.79,3.65853277]
[1751718340030,6.764,147.81,147.78,6.7649]
[1751718340230,6.764,147.81,147.79,3.65853277]
[1751718341333,6.7636,147.82,147.79,10.42313277]
[1751718341733,6.7636,147.82,147.81,2.34135869]
[1751718344234,6.7639,147.81,147.78,6.765]
[1751718344434,6.7639,147.81,147.8,2.34135869]
[1751718345836,6.7639,147.81,147.78,10.42405831]
[1751718346138,6.7643,147.8,147.78,10.42405831]
[1751718348738,6.764,147.81,147.78,10.42405831]
[1751718357035,6.764,147.81,147.78,6.765]
[1751718357239,6.7647,147.79,147.76,10.42505831]
[1751718358633,6.7652,147.78,147.76,10.42505831]
[1751718359039,4.5782311,147.83,147.76,10.42505831]
[1751718359237,12.84413016,147.82,147.76,10.42505831]
[1751718359439,6.765,147.79,147.77,6.7656]
[1751718360740,6.7644,147.8,147.77,6.7656]
[1751718360940,12.25777057,147.84,147.77,6.7656]
[1751718361140,17.42638425,147.83,147.77,6.7656]
[1751718361440,12.84688252,147.82,147.77,6.7656]
[1751718361641,12.84688252,147.81,147.77,6.7656]
[1751718361839,5.7125296,147.8,147.77,6.7656]
[1751718362039,4.57975833,147.83,147.77,6.7656]
[1751718362240,6.764,147.81,147.77,6.7656]
[1751718362444,5.71285144,147.8,147.77,6.7656]
[1751718362646,6.764,147.81,147.77,6.7656]
[1751718362841,5.7070365,147.8,147.77,6.7656]
[1751718363141,6.764,147.81,147.77,6.7656]
[1751718364352,6.7643,147.8,147.77,6.7656]
[1751718365546,6.7648,147.79,147.77,6.7656]
[1751718365744,2.34242099,147.82,147.78,2.34242099]
[1751718366050,7.13590337,147.81,147.78,2.34242099]
[1751718366253,17.09223333,147.8,147.78,2.34242099]
[1751718366454,6.7645,147.8,147.78,2.34242099]
[1751718366650,5.71453738,147.79,147.78,2.34242099]
[1751718367251,5.71453738,147.79,147.77,6.7656]
[1751718367451,6.7645,147.8,147.78,2.34242099]
[1751718367750,5.71480079,147.79,147.78,2.34242099]
[1751718368349,12.47950079,147.79,147.78,2.34242099]
[1751718369055,12.47950079,147.79,147.76,6.7659]
[1751718369256,2.34242099,147.8,147.76,2.34242099]
[1751718369452,5.71506865,147.79,147.76,2.34242099]
[1751718369653,2.34242099,147.8,147.76,2.34242099]
[1751718369850,6.7653,147.78,147.76,2.34242099]
[1751718371657,6.7653,147.78,147.76,9.10842099]
[1751718371853,6.7653,147.78,147.77,2.34242099]
[1751718372151,6.7653,147.78,147.76,6.766]
[1751718372354,6.7653,147.78,147.77,2.34242099]
[1751718372549,6.7648,147.79,147.77,2.34242099]
[1751718372747,6.7648,147.79,147.78,2.34242099]
[1751718372946,12.46249848,147.79,147.78,2.34242099]
[1751718373150,12.46309057,147.79,147.78,2.34242099]
[1751718373548,5.69829057,147.79,147.78,2.34242099]
[1751718373748,6.7645,147.8,147.78,2.34242099]
[1751718373948,6.7645,147.8,147.79,2.34242099]
[1751718374252,12.46312425,147.8,147.79,2.34242099]
[1751718374452,5.69862425,147.8,147.79,2.34242099]
[1751718375754,5.69862425,147.8,147.78,6.7649]
[1751718375953,6.764,147.81,147.79,2.34242099]
[1751718376150,5.6983304,147.8,147.79,2.34242099]
[1751718376961,5.6983304,147.8,147.79,9.10712099]
[1751718377361,2.33,147.84,147.79,2.34242099]
[1751718377557,12.82025237,147.83,147.78,45.84]
[1751718377761,6.27825282,147.87,147.82,2.34242099]
[1751718377962,12.82153427,147.86,147.84,2.34242099]
[1751718378165,12.82153427,147.85,147.84,2.34242099]
[1751718378362,10.30735588,147.85,147.84,2.34242099]
[1751718379162,5.70536788,147.85,147.84,2.34242099]
[1751718379357,12.46736788,147.85,147.84,2.34242099]
[1751718379859,12.46736788,147.85,147.83,6.7627]
[1751718380060,6.762,147.85,147.83,6.7627]
[1751718380762,6.762,147.85,147.82,10.42020105]
[1751718383964,6.7618,147.86,147.83,6.7629]
[1751718384262,5.72814833,147.85,147.83,6.7629]
[1751718384460,6.762,147.86,147.82,10.42030105]
[1751718384660,5.72736505,147.85,147.82,10.42030105]
[1751718384861,6.762,147.86,147.82,10.42030105]
[1751718385164,12.48936505,147.85,147.82,10.42030105]
[1751718385466,6.762,147.85,147.82,10.42030105]
[1751718385667,6.762,147.85,147.82,6.7632]
[1751718385964,6.762,147.85,147.82,10.42030105]
[1751718396070,6.7617,147.86,147.83,6.7628]
[1751718398474,6.7613,147.87,147.84,6.7624]
[1751718398786,6.7613,147.87,147.84,10.41950105]
[1751718399870,6.7613,147.87,147.86,2.34014488]
[1751718400577,6.7613,147.87,147.84,6.7624]
[1751718400776,6.7613,147.87,147.86,2.34014488]
[1751718402570,45.84,147.9,147.86,2.34014488]
[1751718402777,6.8465,147.91,147.83,45.84]
[1751718402778,2.227,147.91,147.88,2.34014488]
[1751718402971,6.7594,147.91,147.9,2.34014488]
[1751718403175,83.00208376,147.92,147.9,2.34014488]
[1751718403676,89.76108376,147.92,147.9,2.34014488]
[1751718404276,89.76108376,147.92,147.91,2.34014488]
[1751718404876,6.759,147.92,147.91,2.34014488]
[1751718405076,6.7593,147.91,147.9,2.34014488]
[1751718411777,2.244,147.94,147.9,2.34014488]
[1751718411977,2.244,147.94,147.92,2.34014488]
[1751718412681,6.7581,147.94,147.93,2.34014488]
[1751718413772,6.7585,147.93,147.9,6.7595]
[1751718414078,6.7585,147.93,147.92,2.34014488]
[1751718419581,2.2205,147.95,147.92,2.34014488]
[1751718419786,6.7581,147.94,147.93,2.34014488]
[1751718422485,6.7584,147.93,147.92,2.34014488]
[1751718425390,6.7584,147.93,147.9,6.7595]
[1751718425591,6.7588,147.92,147.9,6.7595]
[1751718425891,2.2205,147.95,147.91,2.34014488]
[1751718426190,6.7586,147.93,147.92,2.34014488]
[1751718432394,6.7581,147.94,147.92,2.34014488]
[1751718432594,6.7581,147.94,147.93,2.34014488]
[1751718435597,6.7581,147.94,147.91,6.7592]
[1751718435801,6.7581,147.94,147.93,2.34014488]
[1751718436602,6.7583,147.93,147.92,2.34014488]
[1751718441905,6.7581,147.94,147.92,2.34014488]
[1751718442306,6.7581,147.94,147.92,9.09884488]
[1751718442706,6.7581,147.94,147.92,2.34014488]
[1751718443107,6.7581,147.94,147.93,2.34014488]
[1751718443307,17.30269542,147.94,147.93,2.34014488]
[1751718445609,17.30269542,147.94,147.92,6.7588]
[1751718445811,6.7581,147.94,147.93,2.34014488]
[1751718446210,17.31638545,147.94,147.93,2.34014488]
[1751718446411,10.55828545,147.94,147.93,2.34014488]
[1751718447911,17.31618545,147.94,147.93,2.34014488]
[1751718448312,17.31618545,147.94,147.91,6.7591]
[1751718448511,8.6183977,147.97,147.92,2.34014488]
[1751718448713,20.16372837,147.96,147.92,2.34014488]
[1751718448903,13.08706782,147.95,147.92,2.34014488]
[1751718449104,17.3239761,147.94,147.92,2.34014488]
[1751718449313,6.7583,147.94,147.92,2.34014488]
[1751718449513,2.34014488,147.96,147.92,2.34014488]
[1751718449712,13.08805637,147.95,147.92,2.34014488]
[1751718449911,13.08805637,147.94,147.92,2.34014488]
[1751718450108,10.56647751,147.93,147.92,2.34014488]
[1751718450510,17.32477751,147.93,147.92,2.34014488]
[1751718453309,10.56647751,147.93,147.92,2.34014488]
[1751718455415,17.32477751,147.93,147.92,2.34014488]
[1751718456613,10.56647751,147.93,147.88,45.82]
[1751718456916,8.6183977,147.91,147.86,2.34014488]
[1751718457118,6.7605,147.89,147.86,9.10154488]
[1751718457318,10.56647751,147.88,147.87,2.34014488]
[1751718458417,10.57608005,147.88,147.87,2.34014488]
[1751718458815,12.52681133,147.88,147.87,2.34014488]
[1751718459015,17.3367604,147.88,147.87,2.34014488]
[1751718460214,12.52681133,147.88,147.87,2.34014488]
[1751718460519,6.7606,147.88,147.85,590.4617]
[1751718460816,6.7606,147.88,147.87,2.34014488]
[1751718461021,12.50275813,147.88,147.87,2.34014488]
[1751718461521,10.50574086,147.88,147.86,2.34014488]
[1751718461722,2.34014488,147.9,147.86,2.34014488]
[1751718461920,13.01636869,147.89,147.86,2.34014488]
[1751718462121,17.26404256,147.88,147.86,2.34014488]
[1751718462321,6.7609,147.88,147.86,2.34014488]
[1751718465123,8.54965282,147.92,147.87,2.34014488]
[1751718465124,6.7603,147.89,147.87,2.34014488]
[1751718465325,2.2714,147.92,147.88,2.34014488]
[1751718465526,10.46230264,147.91,147.89,2.34014488]
[1751718465727,12.49442708,147.9,147.89,2.34014488]
[1751718466226,6.7597,147.9,147.89,2.34014488]
[1751718469922,6.7597,147.9,147.87,6.7608]
[1751718470127,4.61154488,147.92,147.87,2.34014488]
[1751718470326,2.34014488,147.9,147.87,2.34014488]
[1751718470623,6.7606,147.88,147.86,2.34014488]
[1751718471625,6.7611,147.87,147.86,2.34014488]
[1751718473025,6.7608,147.88,147.86,2.34014488]
[1751718475129,6.7608,147.88,147.87,2.34014488]
[1751718479333,6.7608,147.88,147.86,2.34014488]
[1751718480631,6.7614,147.87,147.84,45.8]
[1751718480827,2.34014488,147.9,147.84,45.8]
[1751718481133,2.34014488,147.91,147.87,2.34014488]
[1751718481333,6.7609,147.88,147.87,2.34014488]
[1751718483930,6.7615,147.86,147.84,45.8]
[1751718484133,2.34014488,147.88,147.84,45.8]
[1751718485236,6.762,147.85,147.83,2.34014488]
[1751718485436,6.762,147.85,147.84,2.34014488]
[1751718486335,6.7625,147.84,147.8,45.8]
[1751718486638,6.7625,147.84,147.83,2.34014488]
[1751718487539,6.7622,147.85,147.82,6.7631]
[1751718487742,6.7622,147.85,147.84,2.34014488]
[1751718490651,6.7622,147.85,147.82,6.7631]
[1751718490947,6.7622,147.85,147.84,2.34014488]
[1751718491148,6.7622,147.85,147.83,2.34014488]
[1751718492857,6.7624,147.84,147.83,2.34014488]
[1751718494060,6.7624,147.84,147.82,2.34014488]
[1751718495761,6.7624,147.84,147.83,2.34014488]
[1751718496056,6.7622,147.85,147.83,2.34014488]
[1751718496262,6.7622,147.85,147.84,2.34014488]
[1751718498958,6.7622,147.85,147.83,2.34014488]
[1751718499160,2.34014488,147.86,147.81,2.34014488]
[1751718499367,2.34014488,147.84,147.8,48.14014488]
[1751718499663,6.7637,147.82,147.8,48.14014488]
[1751718500665,6.7637,147.82,147.8,45.8]
[1751718500854,6.7637,147.82,147.81,2.34014488]
[1751718502556,6.7637,147.82,147.8,48.14014488]
[1751718502757,6.7637,147.82,147.8,45.8]
[1751718502954,6.7637,147.82,147.8,48.14014488]
[1751718507563,6.7637,147.82,147.8,54.90434488]
[1751718507762,6.7637,147.82,147.81,2.34014488]
[1751718512068,6.7628,147.84,147.81,2.34014488]
[1751718512362,2.257,147.85,147.83,2.34014488]
[1751718513066,6.7628,147.84,147.81,6.7636]
[1751718513368,6.7628,147.84,147.83,2.34014488]
[1751718516368,17.08076059,147.84,147.83,2.34014488]
[1751718516567,17.08076059,147.84,147.82,2.34014488]
[1751718516767,6.7628,147.84,147.82,2.34014488]
[1751718517569,6.7629,147.83,147.82,2.34014488]
[1751718521274,12.44260044,147.83,147.82,2.34014488]
[1751718522074,12.44260044,147.83,147.8,52.5642]
[1751718522373,6.7629,147.83,147.82,2.34014488]
[1751718522572,12.44923492,147.83,147.82,2.34014488]
[1751718523873,12.44923492,147.83,147.81,2.34014488]
[1751718524072,6.7629,147.83,147.81,2.34014488]
[1751718525269,6.7627,147.84,147.82,2.34014488]
[1751718525473,6.7627,147.84,147.83,2.34014488]
[1751718525769,17.09495685,147.84,147.83,2.34014488]
[1751718526271,17.09495685,147.84,147.83,9.10304488]
[1751718526272,10.33225685,147.84,147.83,9.10304488]
[1751718526575,5.68832367,147.84,147.83,9.10304488]
[1751718529176,5.68832367,147.84,147.83,2.34014488]
[1751718529375,12.45072367,147.84,147.83,2.34014488]
[1751718529678,10.36861888,147.84,147.83,2.34014488]
[1751718529880,5.68832367,147.84,147.83,2.34014488]
[1751718530880,5.68832367,147.84,147.83,9.10304488]
[1751718531684,5.72786726,147.84,147.83,9.10304488]
[1751718532080,8.60588001,147.89,147.85,6.7619]
[1751718532382,12.93017359,147.88,147.86,2.34014488]
[1751718532678,8.60588001,147.89,147.86,2.34014488]
[1751718532679,12.93014274,147.87,147.86,2.34014488]
[1751718533384,19.69124274,147.87,147.86,2.34014488]
[1751718534186,17.17001345,147.87,147.86,2.34014488]
[1751718535286,19.69238322,147.87,147.86,2.34014488]
[1751718535479,17.17001345,147.87,147.86,2.34014488]
[1751718543193,12.48947605,147.87,147.86,2.34014488]
[1751718543589,6.7611,147.87,147.86,2.34014488]
[1751718543912,12.4859085,147.87,147.86,2.34014488]
[1751718545088,5.7248085,147.87,147.86,2.34014488]
[1751718545291,2.225,147.92,147.86,2.34014488]
[1751718545486,12.93071234,147.91,147.89,2.34014488]
[1751718545690,17.17157597,147.9,147.89,2.34014488]
[1751718546495,12.48409864,147.9,147.89,2.34014488]
[1751718547096,6.76,147.9,147.89,2.34014488]
[1751718547893,12.48216337,147.9,147.89,2.34014488]
[1751718548094,6.76,147.9,147.89,2.34014488]
[1751718548390,12.48216337,147.9,147.89,2.34014488]
[1751718549897,6.76,147.9,147.89,2.34014488]
[1751718555301,6.7603,147.89,147.87,6.7608]
[1751718555501,2.225,147.92,147.88,2.34014488]
[1751718555702,5.73096331,147.91,147.89,2.34014488]
[1751718555902,2.225,147.92,147.89,2.34014488]
[1751718556197,5.73096331,147.91,147.89,2.34014488]
[1751718556404,6.76,147.9,147.89,2.34014488]
[1751718570309,12.50780769,147.9,147.89,2.34014488]
[1751718572610,5.74780769,147.9,147.89,2.34014488]
[1751718572816,48.0381,147.94,147.89,2.34014488]
[1751718573017,10.48415142,147.93,147.91,2.34014488]
[1751718573217,6.759,147.92,147.91,2.34014488]
[1751718573418,12.51182504,147.92,147.91,2.34014488]
[1751718573616,12.51280511,147.92,147.91,2.34014488]
[1751718574319,12.51301298,147.92,147.91,2.34014488]
[1751718575218,6.759,147.92,147.91,2.34014488]
[1751718575417,12.513917,147.92,147.91,2.34014488]
[1751718575717,5.754917,147.92,147.91,2.34014488]